fUST/lending_fUST_20250430
["ID","MTS","AMOUNT","RATE_DAILY","PERIOD"]
[359433105,1746013840718,-1587.19872541,0.00027387,2]
[359433106,1746013840729,-1479.40000004,0.00027387,2]
[359433128,1746013843215,-18795.93139418,0.00027387,2]
[359433130,1746013843229,-4186.79886897,0.00027387,2]
[359433134,1746013843269,-91058.506272,0.00027387,2]
[359433136,1746013843280,-2591.93080812,0.00027387,2]
[359433138,1746013843290,-293.90184184,0.00027395,2]
[359433140,1746013843300,-215.0738,0.00027395,2]
[359433142,1746013843311,-472.46598486,0.00027397,2]
[359433144,1746013843321,-200.0,0.00027397,2]
[359433146,1746013843331,-309.35699869,0.00027397,2]
[359433147,1746013843342,-200.0,0.00027397,2]
[359433148,1746013843352,-300.0,0.00027397,2]
[359433149,1746013843364,-200.90644997,0.00027397,2]
[359433150,1746013843374,-167.02455308,0.00027397,2]
[359433151,1746013843384,-200.0,0.00027397,2]
[359433152,1746013843394,-400.0,0.00027397,2]
[359433153,1746013843404,-151.0,0.00027397,2]
[359433154,1746013843414,-151.0,0.00027397,2]
[359433155,1746013843425,-151.0,0.00027397,2]
[359433156,1746013843436,-500.0,0.00027397,2]
[359433157,1746013843447,-297.97865789,0.00027397,2]
[359433158,1746013843458,-500.0,0.00027397,2]
[359433159,1746013843468,-151.0,0.00027397,2]
[359433160,1746013843478,-946.47,0.00027397,2]
[359433161,1746013843488,-400.0,0.00027397,2]
[359433162,1746013843502,-452.39459528,0.00027397,2]
[359433163,1746013843513,-400.0,0.00027397,2]
[359433164,1746013843523,-400.0,0.00027397,2]
[359433165,1746013843533,-400.0,0.00027397,2]
[359433166,1746013843544,-400.0,0.00027397,2]
[359433167,1746013843554,-400.0,0.00027397,2]
[359433168,1746013843564,-400.0,0.00027397,2]
[359433169,1746013843576,-400.0,0.00027397,2]
[359433170,1746013843586,-506.2692627,0.00027397,2]
[359433171,1746013843596,-375.26,0.00027397,2]
[359433172,1746013843606,-400.0,0.00027397,2]
[359433173,1746013843615,-500.0,0.00027397,2]
[359433174,1746013843625,-400.0,0.00027397,2]
[359433175,1746013843635,-151.3466504,0.00027397,2]
[359433176,1746013843646,-400.0,0.00027397,2]
[359433177,1746013843656,-151.0,0.00027397,2]
[359433178,1746013843666,-151.0,0.00027397,2]
[359433179,1746013843676,-151.0,0.00027397,2]
[359433180,1746013843686,-500.0,0.00027397,2]
[359433181,1746013843696,-202.97033167,0.00027397,2]
[359433182,1746013843706,-485.56901329,0.00027397,2]
[359433183,1746013843716,-400.0,0.00027397,2]
[359433184,1746013843726,-400.0,0.00027397,2]
[359433185,1746013843735,-400.0,0.00027397,2]
[359433186,1746013843744,-400.0,0.00027397,2]
[359433187,1746013843753,-400.0,0.00027397,2]
[359433188,1746013843763,-400.0,0.00027397,2]
[359433189,1746013843772,-400.0,0.00027397,2]
[359433190,1746013843781,-400.0,0.00027397,2]
[359433191,1746013843789,-400.0,0.00027397,2]
[359433192,1746013843804,-400.0,0.00027397,2]
[359433193,1746013843814,-400.0,0.00027397,2]
[359433194,1746013843823,-174.07,0.00027397,2]
[359433195,1746013843833,-400.0,0.00027397,2]
[359433196,1746013843842,-400.0,0.00027397,2]
[359433197,1746013843851,-400.0,0.00027397,2]
[359433198,1746013843861,-400.0,0.00027397,2]
[359433199,1746013843871,-212.00374495,0.00027397,2]
[359433200,1746013843881,-558.02,0.00027397,2]
[359433201,1746013843890,-400.0,0.00027397,2]
[359433202,1746013843900,-400.0,0.00027397,2]
[359433203,1746013843910,-400.0,0.00027397,2]
[359433204,1746013843920,-400.0,0.00027397,2]
[359433205,1746013843930,-400.0,0.00027397,2]
[359433206,1746013843939,-400.0,0.00027397,2]
[359433207,1746013843949,-400.0,0.00027397,2]
[359433208,1746013843959,-400.0,0.00027397,2]
[359433209,1746013843969,-512.25,0.00027397,2]
[359433210,1746013843979,-505.98,0.00027397,2]
[359433211,1746013843989,-400.0,0.00027397,2]
[359433212,1746013843999,-400.0,0.00027397,2]
[359433213,1746013844008,-400.0,0.00027397,2]
[359433214,1746013844018,-400.0,0.00027397,2]
[359433215,1746013844028,-400.0,0.00027397,2]
[359433216,1746013844038,-598.16,0.00027397,2]
[359433217,1746013844048,-400.0,0.00027397,2]
[359433218,1746013844058,-400.0,0.00027397,2]
[359433219,1746013844068,-400.0,0.00027397,2]
[359433220,1746013844078,-489.38,0.00027397,2]
[359433221,1746013844088,-400.0,0.00027397,2]
[359433222,1746013844098,-400.0,0.00027397,2]
[359433223,1746013844108,-400.0,0.00027397,2]
[359433224,1746013844118,-804.7,0.00027397,2]
[359433225,1746013844127,-400.0,0.00027397,2]
[359433226,1746013844137,-400.0,0.00027397,2]
[359433227,1746013844147,-214.98,0.00027397,2]
[359433228,1746013844156,-967.98,0.00027397,2]
[359433229,1746013844166,-790.84,0.00027397,2]
[359433230,1746013844176,-528.18,0.00027397,2]
[359433231,1746013844186,-400.0,0.00027397,2]
[359433232,1746013844196,-400.0,0.00027397,2]
[359433233,1746013844206,-1709.69,0.00027397,2]
[359433234,1746013844215,-400.0,0.00027397,2]
[359433235,1746013844225,-400.0,0.00027397,2]
[359433236,1746013844235,-400.0,0.00027397,2]
[359433237,1746013844244,-400.0,0.00027397,2]
[359433238,1746013844254,-400.0,0.00027397,2]
[359433239,1746013844264,-201.2969956,0.00027397,2]
[359433240,1746013844273,-456.38,0.00027397,2]
[359433241,1746013844283,-572.84,0.00027397,2]
[359433242,1746013844293,-400.0,0.00027397,2]
[359433243,1746013844303,-400.0,0.00027397,2]
[359433244,1746013844313,-2540.61,0.00027397,2]
[359433245,1746013844323,-664.16,0.00027397,2]
[359433246,1746013844333,-400.0,0.00027397,2]
[359433247,1746013844343,-188.5,0.00027397,2]
[359433248,1746013844352,-191.18,0.00027397,2]
[359433249,1746013844362,-197.61,0.00027397,2]
[359433250,1746013844371,-178.01,0.00027397,2]
[359433251,1746013844381,-400.0,0.00027397,2]
[359433252,1746013844391,-163.3,0.00027397,2]
[359433253,1746013844401,-435.12,0.00027397,2]
[359433254,1746013844411,-404.93,0.00027397,2]
[359433255,1746013844421,-500.0,0.00027397,2]
[359433256,1746013844432,-400.0,0.00027397,2]
[359433257,1746013844442,-767.62,0.00027397,2]
[359433258,1746013844452,-400.0,0.00027397,2]
[359433259,1746013844462,-400.0,0.00027397,2]
[359433260,1746013844472,-400.0,0.00027397,2]
[359433261,1746013844482,-1109.5,0.00027397,2]
[359433262,1746013844493,-397.55272875,0.00027397,30]
[359433263,1746013844503,-500.0,0.00027397,2]
[359433264,1746013844513,-400.0,0.00027397,2]
[359433265,1746013844522,-186.02,0.00027397,2]
[359433266,1746013844532,-400.0,0.00027397,2]
[359433267,1746013844543,-400.0,0.00027397,2]
[359433268,1746013844553,-505.62900437,0.00027397,2]
[359433269,1746013844563,-266.8645013,0.00027397,2]
[359433270,1746013844573,-308.99864645,0.00027397,2]
[359433271,1746013844584,-400.0,0.00027397,2]
[359433272,1746013844594,-400.0,0.00027397,2]
[359433273,1746013844603,-405.45950171,0.00027397,2]
[359433274,1746013844613,-400.0,0.00027397,2]
[359433275,1746013844623,-400.0,0.00027397,2]
[359433276,1746013844633,-230.39401395,0.00027397,2]
[359433277,1746013844643,-400.0,0.00027397,2]
[359433278,1746013844653,-400.0,0.00027397,2]
[359433279,1746013844664,-400.0,0.00027397,2]
[359433280,1746013844674,-400.0,0.00027397,2]
[359433281,1746013844684,-400.0,0.00027397,2]
[359433282,1746013844694,-400.0,0.00027397,2]
[359433283,1746013844704,-400.0,0.00027397,2]
[359433284,1746013844713,-400.0,0.00027397,2]
[359433285,1746013844723,-810.4,0.00027397,2]
[359433286,1746013844733,-400.0,0.00027397,2]
[359433287,1746013844742,-400.0,0.00027397,2]
[359433288,1746013844752,-400.0,0.00027397,2]
[359433289,1746013844762,-400.0,0.00027397,2]
[359433290,1746013844771,-400.0,0.00027397,2]
[359433291,1746013844781,-555.53,0.00027397,2]
[359433292,1746013844791,-500.0,0.00027397,2]
[359433293,1746013844800,-400.0,0.00027397,2]
[359433294,1746013844809,-400.0,0.00027397,2]
[359433295,1746013844819,-400.0,0.00027397,2]
[359433296,1746013844829,-400.0,0.00027397,2]
[359433297,1746013844839,-400.0,0.00027397,2]
[359433298,1746013844849,-500.0,0.00027397,2]
[359433299,1746013844858,-400.0,0.00027397,2]
[359433300,1746013844868,-500.71863601,0.00027397,2]
[359433301,1746013844878,-509.16546418,0.00027397,2]
[359433302,1746013844887,-400.0,0.00027397,2]
[359433303,1746013844897,-501.28169763,0.00027397,2]
[359433304,1746013844907,-400.0,0.00027397,2]
[359433305,1746013844916,-863.36,0.00027397,2]
[359433306,1746013844927,-400.0,0.00027397,2]
[359433307,1746013844937,-500.0,0.00027397,2]
[359433308,1746013844946,-500.0,0.00027397,2]
[359433309,1746013844956,-400.0,0.00027397,2]
[359433310,1746013844965,-500.0,0.00027397,2]
[359433311,1746013844975,-400.0,0.00027397,2]
[359433312,1746013844985,-500.0,0.00027397,2]
[359433313,1746013844994,-419.31,0.00027397,2]
[359433314,1746013845004,-512.50566395,0.00027397,2]
[359433315,1746013845014,-501.27681015,0.00027397,2]
[359433316,1746013845024,-500.0,0.00027397,2]
[359433317,1746013845034,-400.0,0.00027397,2]
[359433318,1746013845044,-327.49,0.00027397,2]
[359433319,1746013845054,-5002.03,0.00027397,2]
[359433320,1746013845064,-641.21,0.00027397,2]
[359433321,1746013845074,-400.0,0.00027397,2]
[359433322,1746013845083,-400.0,0.00027397,2]
[359433323,1746013845093,-400.0,0.00027397,2]
[359433324,1746013845102,-400.0,0.00027397,2]
[359433325,1746013845112,-1677.92,0.00027397,2]
[359433326,1746013845121,-400.0,0.00027397,2]
[359433327,1746013845131,-400.0,0.00027397,2]
[359433328,1746013845142,-400.0,0.00027397,2]
[359433329,1746013845152,-400.0,0.00027397,2]
[359433330,1746013845162,-619.89,0.00027397,2]
[359433331,1746013845171,-4629.22,0.00027397,2]
[359433332,1746013845182,-500.0,0.00027397,2]
[359433333,1746013845192,-500.0,0.00027397,2]
[359433334,1746013845202,-151.0,0.00027397,2]
[359433335,1746013845212,-171.07004652,0.00027397,2]
[359433336,1746013845221,-500.0,0.00027397,2]
[359433337,1746013845231,-400.0,0.00027397,2]
[359433338,1746013845241,-400.0,0.00027397,2]
[359433339,1746013845251,-979.83,0.00027397,2]
[359433340,1746013845261,-1164.59,0.00027397,2]
[359433341,1746013845271,-151.0,0.00027397,2]
[359433342,1746013845281,-400.0,0.00027397,2]
[359433343,1746013845291,-500.0,0.00027397,2]
[359433344,1746013845302,-723.99,0.00027397,2]
[359433345,1746013845311,-240.21997096,0.00027397,2]
[359433346,1746013845321,-500.0,0.00027397,2]
[359433347,1746013845337,-400.0,0.00027397,2]
[359433348,1746013845351,-500.0,0.00027397,2]
[359433349,1746013845362,-400.0,0.00027397,2]
[359433350,1746013845374,-907.0,0.00027397,2]
[359433351,1746013845384,-578.18,0.00027397,2]
[359433352,1746013845395,-500.0,0.00027397,2]
[359433353,1746013845406,-175.83,0.00027397,2]
[359433354,1746013845416,-287.98180587,0.00027397,2]
[359433355,1746013845427,-400.0,0.00027397,2]
[359433356,1746013845438,-400.0,0.00027397,2]
[359433357,1746013845449,-400.0,0.00027397,2]
[359433358,1746013845460,-400.0,0.00027397,2]
[359433359,1746013845471,-1898.78,0.00027397,2]
[359433360,1746013845481,-400.0,0.00027397,2]
[359433361,1746013845494,-829.59,0.00027397,2]
[359433362,1746013845504,-400.0,0.00027397,2]
[359433363,1746013845514,-400.0,0.00027397,2]
[359433364,1746013845524,-400.0,0.00027397,2]
[359433365,1746013845535,-400.0,0.00027397,2]
[359433366,1746013845544,-400.0,0.00027397,2]
[359433367,1746013845554,-205.51268419,0.00027397,2]
[359433368,1746013845564,-400.0,0.00027397,2]
[359433369,1746013845576,-400.0,0.00027397,2]
[359433370,1746013845586,-400.0,0.00027397,2]
[359433371,1746013845596,-400.0,0.00027397,2]
[359433372,1746013845605,-400.0,0.00027397,2]
[359433373,1746013845615,-400.0,0.00027397,2]
[359433374,1746013845625,-400.0,0.00027397,2]
[359433375,1746013845635,-400.0,0.00027397,2]
[359433376,1746013845645,-400.0,0.00027397,2]
[359433377,1746013845656,-400.0,0.00027397,2]
[359433379,1746013845666,-400.0,0.00027397,2]
[359433380,1746013845676,-1013.26,0.00027397,2]
[359433382,1746013845687,-1173.73,0.00027397,2]
[359433383,1746013845697,-427.3,0.00027397,2]
[359433384,1746013845707,-154.79,0.00027397,2]
[359433385,1746013845717,-400.0,0.00027397,2]
[359433386,1746013845727,-400.0,0.00027397,2]
[359433388,1746013845737,-408.99,0.00027397,2]
[359433390,1746013845747,-305.26764112,0.00027397,2]
[359433391,1746013845757,-400.0,0.00027397,2]
[359433392,1746013845767,-400.0,0.00027397,2]
[359433393,1746013845778,-400.0,0.00027397,2]
[359433395,1746013845788,-400.0,0.00027397,2]
[359433397,1746013845798,-1261.1,0.00027397,2]
[359433398,1746013845808,-400.0,0.00027397,2]
[359433399,1746013845817,-1992.65,0.00027397,2]
[359433400,1746013845827,-400.0,0.00027397,2]
[359433401,1746013845838,-400.0,0.00027397,2]
[359433402,1746013845848,-764.9,0.00027397,2]
[359433403,1746013845857,-845.2,0.00027397,2]
[359433404,1746013845867,-400.0,0.00027397,2]
[359433405,1746013845879,-500.34263757,0.00027397,2]
[359433406,1746013845889,-400.0,0.00027397,2]
[359433408,1746013845899,-422.32894168,0.00027397,2]
[359433410,1746013845909,-450.0,0.00027397,2]
[359433411,1746013845919,-732.96,0.00027397,2]
[359433412,1746013845929,-400.0,0.00027397,2]
[359433413,1746013845939,-523.24,0.00027397,2]
[359433415,1746013845949,-188.8067593,0.00027397,2]
[359433417,1746013845959,-582.98,0.00027397,2]
[359433419,1746013845969,-400.0,0.00027397,2]
[359433420,1746013845979,-400.0,0.00027397,2]
[359433421,1746013845989,-400.0,0.00027397,2]
[359433422,1746013846001,-400.0,0.00027397,2]
[359433423,1746013846012,-500.0,0.00027397,2]
[359433424,1746013846023,-154.36199593,0.00027397,2]
[359433425,1746013846034,-151.0,0.00027397,2]
[359433426,1746013846044,-151.0,0.00027397,2]
[359433428,1746013846054,-722.82,0.00027397,2]
[359433430,1746013846063,-400.0,0.00027397,2]
[359433431,1746013846073,-1583.31,0.00027397,2]
[359433432,1746013846083,-430.39,0.00027397,2]
[359433433,1746013846092,-400.0,0.00027397,2]
[359433434,1746013846101,-400.0,0.00027397,2]
[359433435,1746013846111,-253.70540224,0.00027397,2]
[359433436,1746013846121,-400.0,0.00027397,2]
[359433437,1746013846130,-665.16,0.00027397,2]
[359433438,1746013846140,-200.0,0.00027397,2]
[359433439,1746013846149,-279.22,0.00027397,2]
[359433440,1746013846159,-1018.59,0.00027397,2]
[359433441,1746013846168,-400.0,0.00027397,2]
[359433442,1746013846177,-400.0,0.00027397,2]
[359433443,1746013846187,-459.73,0.00027397,2]
[359433444,1746013846196,-400.0,0.00027397,2]
[359433445,1746013846205,-235.44,0.00027397,2]
[359433446,1746013846215,-400.0,0.00027397,2]
[359433447,1746013846224,-400.0,0.00027397,2]
[359433448,1746013846234,-400.0,0.00027397,2]
[359433449,1746013846244,-400.0,0.00027397,2]
[359433450,1746013846254,-572.34,0.00027397,2]
[359433451,1746013846264,-838.53,0.00027397,2]
[359433452,1746013846273,-400.0,0.00027397,2]
[359433453,1746013846283,-400.0,0.00027397,2]
[359433454,1746013846292,-400.0,0.00027397,2]
[359433455,1746013846302,-500.0,0.00027397,2]
[359433456,1746013846311,-400.0,0.00027397,2]
[359433457,1746013846321,-400.0,0.00027397,2]
[359433458,1746013846330,-400.0,0.00027397,2]
[359433459,1746013846340,-1038.32,0.00027397,2]
[359433460,1746013846350,-2270.71,0.00027397,2]
[359433461,1746013846359,-400.0,0.00027397,2]
[359433462,1746013846369,-509.43130738,0.00027397,2]
[359433463,1746013846378,-500.0,0.00027397,2]
[359433464,1746013846389,-400.0,0.00027397,2]
[359433465,1746013846399,-1069.13,0.00027397,2]
[359433466,1746013846409,-500.0,0.00027397,2]
[359433467,1746013846419,-500.0,0.00027397,2]
[359433468,1746013846428,-400.0,0.00027397,2]
[359433469,1746013846438,-456.45,0.00027397,2]
[359433470,1746013846608,-500.0,0.00027397,2]
[359433471,1746013846619,-500.0,0.00027397,2]
[359433472,1746013846629,-400.0,0.00027397,2]
[359433473,1746013846638,-1718.57,0.00027397,2]
[359433474,1746013846648,-500.0,0.00027397,2]
[359433475,1746013846659,-400.0,0.00027397,2]
[359433476,1746013846668,-500.0,0.00027397,2]
[359433477,1746013846678,-1690.32,0.00027397,2]
[359433478,1746013846687,-400.0,0.00027397,2]
[359433479,1746013846698,-400.0,0.00027397,2]
[359433480,1746013846708,-500.0,0.00027397,2]
[359433481,1746013846717,-400.0,0.00027397,2]
[359433482,1746013846727,-151.0,0.00027397,2]
[359433483,1746013846737,-151.0,0.00027397,2]
[359433484,1746013846746,-1367.5,0.00027397,2]
[359433485,1746013846756,-162.0941099,0.00027397,2]
[359433486,1746013846765,-151.0,0.00027397,2]
[359433487,1746013846776,-400.0,0.00027397,2]
[359433488,1746013846785,-243.77734893,0.00027397,2]
[359433489,1746013846795,-500.0,0.00027397,2]
[359433490,1746013846805,-2128.58,0.00027397,2]
[359433491,1746013846815,-400.0,0.00027397,2]
[359433492,1746013846825,-400.0,0.00027397,2]
[359433493,1746013846835,-400.0,0.00027397,2]
[359433494,1746013846845,-525.65,0.00027397,2]
[359433495,1746013846854,-500.0,0.00027397,2]
[359433496,1746013846864,-400.0,0.00027397,2]
[359433497,1746013846874,-544.59,0.00027397,2]
[359433498,1746013846884,-400.0,0.00027397,2]
[359433499,1746013846894,-500.0,0.00027397,2]
[359433500,1746013846903,-500.0,0.00027397,2]
[359433501,1746013846913,-400.0,0.00027397,2]
[359433502,1746013846923,-700.61,0.00027397,2]
[359433503,1746013846933,-500.0,0.00027397,2]
[359433504,1746013846944,-152.12336412,0.00027397,2]
[359433505,1746013846955,-500.0,0.00027397,2]
[359433506,1746013846965,-400.0,0.00027397,2]
[359433507,1746013846975,-444.0,0.00027397,2]
[359433508,1746013846984,-400.0,0.00027397,2]
[359433509,1746013846993,-851.96,0.00027397,2]
[359433510,1746013847003,-400.0,0.00027397,2]
[359433511,1746013847015,-400.0,0.00027397,2]
[359433512,1746013847026,-400.0,0.00027397,2]
[359433513,1746013847036,-500.0,0.00027397,2]
[359433514,1746013847046,-400.0,0.00027397,2]
[359433515,1746013847057,-500.0,0.00027397,2]
[359433516,1746013847067,-2250.02,0.00027397,2]
[359433517,1746013847076,-439.4561958,0.00027397,2]
[359433518,1746013847086,-345.07956056,0.00027397,2]
[359433519,1746013847095,-1240.09,0.00027397,2]
[359433520,1746013847105,-400.0,0.00027397,2]
[359433521,1746013847114,-3437.36,0.00027397,2]
[359433522,1746013847125,-400.0,0.00027397,2]
[359433523,1746013847135,-500.0,0.00027397,2]
[359433524,1746013847146,-503.04445539,0.00027397,2]
[359433525,1746013847156,-162.0257358,0.00027397,2]
[359433526,1746013847167,-500.0,0.00027397,2]
[359433527,1746013847177,-635.54,0.00027397,2]
[359433528,1746013847186,-400.0,0.00027397,2]
[359433529,1746013847195,-400.0,0.00027397,2]
[359433530,1746013847205,-400.0,0.00027397,2]
[359433531,1746013847214,-400.0,0.00027397,2]
[359433532,1746013847224,-512.8096395,0.00027397,2]
[359433533,1746013847233,-478.91,0.00027397,2]
[359433534,1746013847243,-400.0,0.00027397,2]
[359433535,1746013847253,-400.0,0.00027397,2]
[359433536,1746013847263,-401.65114902,0.00027397,60]
[359433537,1746013847272,-1185.051348,0.00027397,2]
[359433538,1746013847281,-257.584385,0.00027397,120]
[359433539,1746013847291,-151.0,0.00027424,2]
[359433540,1746013847301,-151.0,0.00027424,2]
[359433541,1746013847311,-151.0,0.00027424,2]
[359433542,1746013847320,-500.0,0.00027424,2]
[359433543,1746013847330,-500.0,0.00027424,2]
[359433544,1746013847340,-151.0,0.00027424,2]
[359433545,1746013847349,-500.0,0.00027424,2]
[359433546,1746013847359,-151.0,0.00027424,2]
[359433547,1746013847369,-151.0,0.00027424,2]
[359433548,1746013847378,-151.0,0.00027424,2]
[359433549,1746013847390,-500.0,0.00027424,2]
[359433550,1746013847400,-500.0,0.00027424,2]
[359433551,1746013847409,-500.0,0.00027424,2]
[359433552,1746013847419,-151.0,0.00027424,2]
[359433553,1746013847428,-500.0,0.00027424,2]
[359433554,1746013847438,-500.0,0.00027424,2]
[359433555,1746013847447,-500.0,0.00027424,2]
[359433556,1746013847457,-500.0,0.00027424,2]
[359433557,1746013847467,-500.0,0.00027424,2]
[359433558,1746013847476,-207.7390813,0.00027424,2]
[359433559,1746013847485,-500.0,0.00027424,2]
[359433560,1746013847497,-500.0,0.00027424,2]
[359433561,1746013847506,-500.0,0.00027424,2]
[359433562,1746013847516,-500.0,0.00027424,2]
[359433563,1746013847525,-500.0,0.00027424,2]
[359433564,1746013847535,-151.0,0.00027424,2]
[359433565,1746013847544,-151.0,0.00027424,2]
[359433566,1746013847553,-151.0,0.00027424,2]
[359433567,1746013847563,-444.0,0.00027424,2]
[359433568,1746013847572,-23519.87120991,0.00027432,2]
[359433569,1746013847730,-1503.0,0.00027432,2]
[359433570,1746013847742,-2039.95364568,0.00027432,2]
[359433571,1746013847754,-3402.92317728,0.00027432,2]
[359433572,1746013847765,-760.74145986,0.00027432,2]
[359433573,1746013847781,-4566.89689343,0.00027432,2]
[359433574,1746013847908,-200.0,0.00025212,5]
[359433575,1746013847918,-250.0,0.00027432,2]
[359433576,1746013847930,-490.66197027,0.00027432,2]
[359433597,1746013884619,225.0,2.684e-05,7]
[359433601,1746014091591,-250.0,0.00023848,2]
[359433602,1746014149374,-151.0,0.00018585,2]
[359433604,1746014298687,-248.50921726,0.00025173,2]
[359433605,1746014407689,-152.0,0.00025109,2]
[359433606,1746014413645,-263.42974267,0.00025105,2]
[359433607,1746014417810,-236.57025733,0.00025105,2]
[359433608,1746014422383,-436.57025733,0.00025105,2]
[359433609,1746014427024,-31.19980722,0.00025105,2]
[359433610,1746014427047,-184.864857,0.00025109,2]
[359433611,1746014431793,-153.28026028,0.00024727,2]
[359433613,1746014435490,-168.31226255,0.00024727,2]
[359433614,1746014442607,-244.09880099,0.00024727,2]
[359433615,1746014447677,-243.58451732,0.00024727,2]
[359433616,1746014456569,-175.1107754,0.00024727,2]
[359433617,1746014460128,-379.92621908,0.00024727,2]
[359433618,1746014464787,-238.28839356,0.00024727,2]
[359433619,1746014469561,-236.64766515,0.00024727,2]
[359433620,1746014474257,-165.84812085,0.00024727,2]
[359433621,1746014479114,-300.0,0.00024727,2]
[359433622,1746014526721,-300.0,0.00024586,2]
[359433623,1746014529998,-20.1901891,0.00024586,2]
[359433624,1746014530024,-679.8098109,0.00024727,2]
[359433625,1746014535560,-236.57025733,0.00024727,2]
[359433626,1746014539768,-300.0,0.00024727,2]
[359433627,1746014543466,-207.08093353,0.00024727,2]
[359433628,1746014548246,-232.50997298,0.00024607,2]
[359433633,1746014555616,-276.14444478,0.00024607,2]
[359433634,1746014558820,-158.00743437,0.00024607,2]
[359433635,1746014563013,-333.33814787,0.00024607,2]
[359433636,1746014567123,-170.55591138,0.00024607,2]
[359433637,1746014573606,-288.24465205,0.00024607,2]
[359433638,1746014577728,-176.75575591,0.00024607,2]
[359433640,1746014614910,-220.55591138,0.00024606,2]
[359433641,1746014618251,-79.44408862,0.00024606,2]
[359433642,1746014618273,-170.55591138,0.00024607,2]
[359433643,1746014623486,-529.44408862,0.00024607,2]
[359433644,1746014660822,-166.1018682,0.00024606,2]
[359433647,1746014734375,-300.0,0.00024606,2]
[359433648,1746014734399,-69.84328708,0.00024606,2]
[359433649,1746014739667,-187.23134576,0.00024606,2]
[359433650,1746014746669,-269.4918856,0.00024506,2]
[359433651,1746014746692,-105.33161336,0.00024536,2]
[359433653,1746014752000,-158.86494167,0.00024536,2]
[359433654,1746014757251,-5.29533055,0.00024536,2]
[359433655,1746014757272,-269.49188558,0.00024567,2]
[359433656,1746014757292,-134.07772554,0.00024597,2]
[359433657,1746014761867,-135.41416004,0.00024597,2]
[359433658,1746014762497,164.58583996,0.00024051,2]
[359433659,1746014765864,-164.58583996,0.00024051,2]
[359433696,1746015032203,-437.2574115,0.00023852,2]
[359433698,1746015032213,-6152.21770636,0.0002401,2]
[359433703,1746015032257,-664.01050394,0.0002401,2]
[359433704,1746015032268,-116.78323388,0.00024051,2]
[359433705,1746015032277,-1200.0,0.00024605,2]
[359433706,1746015032287,-160.0,0.00024605,2]
[359433707,1746015032298,-300.0,0.00024606,2]
[359433708,1746015032308,-300.0,0.00024606,2]
[359433709,1746015032318,-22564.44368066,0.00024607,2]
[359433710,1746015032327,-5789.86795266,0.00024727,2]
[359433711,1746015032337,-414.119533,0.00024811,2]
[359433712,1746015032346,-1152.7899095,0.0002501,2]
[359433713,1746015032356,-152.68707532,0.00025105,2]
[359433714,1746015032365,-500.0,0.00025203,2]
[359433715,1746015032374,-500.0,0.00025203,2]
[359433716,1746015032384,-500.0,0.00025203,2]
[359433717,1746015032393,-201.94896919,0.00025203,2]
[359433718,1746015032403,-500.0,0.00025203,2]
[359433720,1746015032412,-500.0,0.00025203,2]
[359433721,1746015032422,-520.50947246,0.00025203,2]
[359433723,1746015032431,-500.0,0.00025203,2]
[359433725,1746015032442,-500.0,0.00025203,2]